fUSD/lending_fUSD_20241026
["ID","MTS","AMOUNT","RATE_DAILY","PERIOD"]
[340837240,1729902642356,-644.612795,0.000433,14]
[340837241,1729902642365,-644.612795,0.000433,14]
[340837242,1729902642374,-644.612801,0.000433,14]
[340837243,1729902642383,-151.0,0.000433,14]
[340837244,1729902642393,-151.0,0.000433,14]
[340837245,1729902642402,-151.0,0.000433,14]
[340837246,1729902642411,-151.0,0.000433,14]
[340837247,1729902642421,-119373.57145713,0.000433,2]
[340837248,1729902642430,-1210.0,0.000433,2]
[340837249,1729902642439,-3667.21517956,0.000433,2]
[340837250,1729902642448,-342.18145273,0.000433,2]
[340837251,1729902642458,-2953.4346896,0.000433,2]
[340837252,1729902642468,-4905.88606949,0.000433,10]
[340837253,1729902642477,-1494.02407496,0.000433,2]
[340837254,1729902642487,-7249.66230663,0.000433,2]
[340837255,1729902642496,-1011.45747998,0.000433,2]
[340837256,1729902642507,-5093.79920842,0.000433,2]
[340837257,1729902642517,-2685.09505567,0.000433,2]
[340837258,1729902642527,-2411.83305124,0.000433,2]
[340837259,1729902642536,-2631.3246496,0.000433,2]
[340837260,1729902642545,-135041.35968876,0.000433,2]
[340837261,1729902642554,-3190.61747652,0.000433,2]
[340837262,1729902642564,-1457.46977148,0.000433,2]
[340837263,1729902642573,-22415.70781664,0.000433,2]
[340837264,1729902642582,-7585.98719269,0.000433,2]
[340837265,1729902642591,-1050.08119383,0.000433,2]
[340837266,1729902642600,-5867.55135545,0.000433,2]
[340837267,1729902642610,-854.84589473,0.000433,2]
[340837268,1729902642619,-187.59189902,0.000433,2]
[340837269,1729902642628,-1288.74930553,0.000433,2]
[340837270,1729902642638,-4857.16862447,0.000433,2]
[340837271,1729902642647,-291.71568766,0.000433,2]
[340837272,1729902642657,-3944.92956042,0.000433,2]
[340837273,1729902642666,-22374.20153047,0.000433,2]
[340837274,1729902642676,-12615.99700335,0.000433,2]
[340837275,1729902642686,-1888.37386595,0.000433,2]
[340837276,1729902642696,-180.90031373,0.000433,2]
[340837277,1729902642705,-5489.08548403,0.000433,2]
[340837278,1729902642714,-643.0,0.000433,2]
[340837279,1729902642724,-953.82088566,0.000433,2]
[340837280,1729902642732,-9424.81459886,0.000433,2]
[340837281,1729902642740,-5000.0,0.000433,4]
[340837282,1729902642750,-282.37804821,0.000433,2]
[340837283,1729902642761,-56827.43288089,0.000433,2]
[340837284,1729902642786,-165.700835,0.000433,14]
[340837285,1729902642796,-859.01458589,0.000433,2]
[340837286,1729902642807,-291.41106673,0.000433,2]
[340837287,1729902642874,-165.700835,0.0003199,7]
[340837288,1729902642884,-165.700835,0.00032,7]
[340837289,1729902642893,-325.07615435,0.000355,2]
[340837290,1729902642902,-151.0,0.00041096,14]
[340837291,1729902642912,-151.0,0.00041096,14]
[340837292,1729902642921,-151.0,0.0004297,14]
[340837293,1729902642931,-151.0,0.00043,14]
[340837294,1729902642940,-165.700835,0.000433,14]
[340837295,1729902642950,-165.700835,0.000433,14]
[340837296,1729902642959,-1739.56530675,0.000433,2]
[340837297,1729902642972,-550.1564575,0.000433,2]
[340837298,1729902642988,-450.0,0.00040463,2]
[340837299,1729902642997,-716.39548638,0.000433,2]
[340837300,1729902643009,-31160.10263208,0.000433,2]
[340837301,1729902643020,-6698.00044408,0.000433,2]
[340837302,1729902643031,-9168.59972298,0.000433,2]
[340837303,1729902643043,-611.025,0.000433,2]
[340837313,1729902643310,-165.700835,0.00032,7]
[340837314,1729902643319,-165.700835,0.00038346,7]
[340837315,1729902643329,-165.700835,0.0004297,14]
[340837316,1729902643338,-117.18924479,0.00043,2]
[340837317,1729902643355,-52.81075521,0.00043,2]
[340837318,1729902643364,-165.700835,0.00043,14]
[340837319,1729902643374,-151.0,0.0004329,14]
[340837320,1729902643383,-165.700835,0.0004329,14]
[340837321,1729902643393,-151.0,0.000433,14]
[340837322,1729902643402,-151.0,0.000433,14]
[340837323,1729902643412,-279.398919,0.000433,14]
[340837324,1729902643421,-2.35865579,0.000433,14]
[340837325,1729902643433,-163.34217921,0.000433,14]
[340837326,1729902643442,-165.700835,0.000433,14]
[340837327,1729902643452,-165.700833,0.000433,14]
[340837328,1729902643462,-453.46809133,0.000433,2]
[340837330,1729902643473,-1829.96652278,0.000433,2]
[340837332,1729902643484,-344.59647188,0.000433,2]
[340837334,1729902643495,-8823.99346952,0.000433,2]
[340837336,1729902643511,-532.36978236,0.000433,2]
[340837339,1729902643522,-377.338759,0.000433,2]
[340837341,1729902643533,-12212.392165,0.000433,2]
[340837343,1729902643544,-425.335281,0.000433,2]
[340837352,1729902643639,-0.77870457,0.000433,2]
[340837353,1729902643651,-424.82622015,0.000433,2]
[340837354,1729902645929,-812.63958473,0.00014825,2]
[340837355,1729902645938,-76.2822579,0.000391,2]
[340837356,1729902645985,-248.79389645,0.000391,2]
[340837357,1729902645994,-1000.0,0.000427,5]
[340837358,1729902646003,-482.0,0.000433,7]
[340837359,1729902646014,-5144.93369747,0.000433,2]
[340837362,1729903767138,-169.92,0.00015342,2]
[340837363,1729903767158,-162.14448328,0.00032877,2]
[340837364,1729903767178,-787.33,0.00038945,2]
[340837365,1729903767198,-1768.17113999,0.00040496,2]
[340837368,1729903832124,-150.0,0.00017417,2]
[340837369,1729903832134,-22131.82886001,0.00040496,2]
[340837370,1729903832144,-1000.0,0.00040496,2]
[340837371,1729903832155,-11229.93,0.00040515,2]
[340837372,1729903832165,-200.0,0.00040755,2]
[340837373,1729903832174,-4932.64,0.00040779,2]
[340837374,1729903832183,-167.35,0.00040787,30]
[340837375,1729903832193,-150.0,0.00040796,2]
[340837376,1729903832202,-1446.82,0.00040797,2]
[340837377,1729903832211,-171.33,0.00040797,2]
[340837378,1729903832221,-22844.4,0.00040797,2]
[340837379,1729903832231,-5057.21,0.00040797,2]
[340837380,1729903832241,-831.26,0.00040797,2]
[340837381,1729903832250,-7151.43,0.00040797,2]
[340837382,1729903832260,-632.75,0.00040844,2]
[340837383,1729903832269,-160.14,0.00040863,120]
[340837384,1729903832279,-250.0,0.00040867,120]
[340837385,1729903832289,-1553.08,0.00040924,2]
[340837386,1729903832298,-150.99,0.00040924,2]
[340837387,1729903832308,-2559.84,0.0004093,2]
[340837388,1729903832317,-263.27,0.00040946,2]
[340837389,1729903832327,-1000.0,0.00040959,2]
[340837390,1729903832337,-15513.03,0.00040995,2]
[340837391,1729903832346,-231.22,0.0004102,10]
[340837392,1729903832356,-192.69,0.0004102,10]
[340837393,1729903832365,-159.66,0.00041022,2]
[340837394,1729903832375,-332.96,0.0004103,10]
[340837395,1729903832384,-277.47,0.0004103,10]
[340837396,1729903832394,-1852.42,0.0004104,2]
[340837397,1729903832405,-200.0,0.00041045,2]
[340837398,1729903832414,-3481.98,0.00041064,2]
[340837399,1729903832424,-150.86,0.00041096,2]
[340837400,1729903832433,-157.0,0.00041096,2]
[340837401,1729903832443,-200.0,0.00041096,2]
[340837402,1729903832453,-250.0,0.00041096,2]
[340837403,1729903832462,-1806.0,0.000411,3]
[340837404,1729903832472,-3988.91,0.00041108,2]
[340837405,1729903832481,-787.33,0.00041209,2]
[340837406,1729903832491,-1000.0,0.00041376,2]
[340837407,1729903832500,-1959.64,0.00041377,2]
[340837408,1729903832509,-1000.0,0.00041392,7]
[340837409,1729903832519,-1111.08,0.00041392,2]
[340837410,1729903832528,-167.35,0.00041421,30]
[340837411,1729903832537,-392.13007046,0.0004143,2]
[340837412,1729903832547,-56881.29,0.00041431,2]
[340837413,1729903832557,-250.0,0.00041525,2]
[340837414,1729903832567,-2827.33,0.00041533,2]
[340837415,1729903832577,-3231.42,0.00041536,120]
[340837416,1729903832586,-181.06,0.00041578,2]
[340837417,1729903832596,-163.08,0.00041668,2]
[340837418,1729903832606,-151.06,0.00041812,2]
[340837419,1729903832615,-167.8,0.00041825,120]
[340837420,1729903832626,-157.76,0.00042,2]
[340837421,1729903832635,-154.48,0.00042026,120]
[340837422,1729903832645,-11526.0,0.000421,5]
[340837423,1729903832655,-234.96,0.00042375,2]
[340837424,1729903832665,-20.00381982,0.000424,15]
[340837425,1729903832678,-3393.12422575,0.000424,15]
[340837426,1729903832688,-279.033,0.000425,64]
[340837427,1729903832699,-171.0,0.00042544,2]
[340837428,1729903832708,-178.26886642,0.00042659,7]
[340837429,1729903832728,-2504.4988289,0.00042659,7]
[340837431,1729903838112,-8360.58648218,0.00042659,7]
[340837432,1729903838264,-770.7839325,0.00042659,7]
[340837433,1729903838290,-1000.0,0.00040924,2]
[340837434,1729903838300,-5749.01189,0.00042659,7]
[340837435,1729903838309,-5479.6,0.00042659,7]
[340837436,1729903838318,-5054.81,0.00042659,7]
[340837437,1729903838327,-5127.66,0.00042659,7]
[340837438,1729903838337,-300.0,0.000427,15]
[340837439,1729903838346,-700.0,0.000428,15]
[340837440,1729903838355,-489.51024723,0.0004287,2]
[340837441,1729903838364,-167.35,0.0004289,30]
[340837442,1729903838373,-1100.0,0.000429,15]
[340837443,1729903838382,-263.27,0.00042994,2]
[340837444,1729903838392,-249.99999901,0.00043,2]
[340837445,1729903838400,-150.86,0.00043151,2]
[340837446,1729903838409,-2123.4128,0.00043174,120]
[340837447,1729903838418,-166.17964688,0.00043174,10]
[340837448,1729903838427,-213.96040226,0.00043174,15]
[340837449,1729903838436,-323.33651334,0.00043174,2]
[340837450,1729903838446,-433.0,0.0004319,2]
[340837451,1729903838457,-6284.15109765,0.00043198,2]
[340837452,1729903838466,-289.5056353,0.00043264,2]
[340837453,1729903838475,-289.5056353,0.00043264,2]
[340837454,1729903838483,-27964.2200885,0.00043264,9]
[340837455,1729903838492,-573.38861899,0.00043273,31]
[340837456,1729903838501,-500.0,0.00043273,31]
[340837457,1729903838510,-500.0,0.00043273,31]
[340837458,1729903838519,-500.0,0.00043273,31]
[340837459,1729903838528,-269.29330394,0.00043273,31]
[340837460,1729903838538,-300.0,0.00043273,31]
[340837461,1729903838547,-224.15416471,0.00043273,18]
[340837462,1729903838556,-604.88,0.00043273,2]
[340837463,1729903838566,-497.0,0.00043273,7]
[340837464,1729903838575,-1918254.46765284,0.00043274,2]
[340837465,1729903838584,-1372.3284621,0.00043274,2]
[340837466,1729903838594,-10037.34557063,0.00043274,7]
[340837467,1729903838603,-48108.961092,0.00043274,2]
[340837468,1729903838613,-17137.06285839,0.00043274,2]
[340837469,1729903838622,-74556.64926228,0.00043274,2]
[340837470,1729903838631,-151.0,0.00043274,14]
[340837471,1729903838640,-151.0,0.00043274,14]
[340837472,1729903838650,-151.0,0.00043274,14]
[340837474,1729903838659,-151.0,0.00043274,14]
[340837476,1729903838668,-151.0,0.00043274,14]
[340837477,1729903838677,-151.0,0.00043274,14]
[340837479,1729903838686,-151.0,0.00043274,14]
[340837481,1729903838697,-151.0,0.00043274,14]
[340837483,1729903838706,-151.0,0.00043274,14]
[340837485,1729903838715,-151.0,0.00043274,14]
[340837486,1729903838724,-151.0,0.00043274,14]
[340837487,1729903838734,-151.0,0.00043274,14]
[340837488,1729903838744,-151.0,0.00043274,14]
[340837489,1729903838753,-151.0,0.00043274,14]
[340837490,1729903838763,-151.0,0.00043274,14]
[340837491,1729903838773,-151.0,0.00043274,14]
[340837492,1729903838782,-151.0,0.00043274,14]
[340837493,1729903838792,-151.0,0.00043274,14]
[340837494,1729903838801,-151.0,0.00043274,14]
[340837495,1729903838811,-151.0,0.00043274,14]
[340837496,1729903838819,-151.0,0.00043274,14]
[340837497,1729903838833,-207.120679,0.00043274,14]
[340837498,1729903838843,-151.0,0.00043274,14]
[340837499,1729903838853,-207.120679,0.00043274,14]
[340837500,1729903838865,-151.262348,0.00043274,14]
[340837501,1729903838876,-151.262348,0.00043274,14]
[340837502,1729903838886,-151.0,0.00043274,14]
[340837503,1729903838896,-451.228957,0.00043274,14]
[340837504,1729903838905,-151.0,0.00043274,14]
[340837505,1729903838915,-151.0,0.00043274,14]
[340837506,1729903838924,-151.0,0.00043274,14]
[340837507,1729903838934,-151.0,0.00043274,14]
[340837508,1729903838944,-151.0,0.00043274,7]
[340837509,1729903838953,-151.0,0.00043274,14]
[340837510,1729903838962,-151.0,0.00043274,14]
[340837511,1729903838971,-151.0,0.00043274,14]
[340837512,1729903838981,-151.0,0.00043274,14]
[340837513,1729903838990,-151.0,0.00043274,14]
[340837514,1729903839000,-151.0,0.00043274,14]
[340837515,1729903839009,-5000.0,0.00043274,14]
[340837516,1729903839019,-5000.0,0.00043274,14]
[340837517,1729903839031,-5000.0,0.00043274,14]
[340837518,1729903839040,-5000.0,0.00043274,14]
[340837519,1729903839050,-5000.0,0.00043274,14]
[340837520,1729903839061,-151.0,0.00043274,14]
[340837521,1729903839072,-5000.0,0.00043274,14]
[340837522,1729903839081,-5000.0,0.00043274,14]
[340837523,1729903839092,-5000.0,0.00043274,14]
[340837524,1729903839101,-5000.0,0.00043274,14]
[340837525,1729903839111,-5000.0,0.00043274,14]
[340837526,1729903839121,-5000.0,0.00043274,14]
[340837527,1729903839132,-5000.0,0.00043274,14]
[340837528,1729903839141,-5000.0,0.00043274,14]
[340837529,1729903839151,-5000.0,0.00043274,14]
[340837530,1729903839161,-5000.0,0.00043274,14]
[340837531,1729903839171,-5000.0,0.00043274,14]
[340837532,1729903839180,-151.0,0.00043274,14]
[340837533,1729903839191,-5000.0,0.00043274,14]
[340837534,1729903839202,-5000.0,0.00043274,14]
[340837535,1729903839210,-5000.0,0.00043274,14]
[340837536,1729903839219,-5000.0,0.00043274,14]
[340837537,1729903839229,-5000.0,0.00043274,14]
[340837538,1729903839239,-5000.0,0.00043274,14]
[340837539,1729903839249,-5000.0,0.00043274,14]
[340837540,1729903839259,-5000.0,0.00043274,14]
[340837541,1729903839268,-5000.0,0.00043274,14]
[340837542,1729903839277,-5000.0,0.00043274,14]
[340837543,1729903839287,-5000.0,0.00043274,14]
[340837544,1729903839297,-5000.0,0.00043274,14]
[340837545,1729903839306,-5000.0,0.00043274,14]
[340837546,1729903839317,-3396.747295,0.00043274,14]
[340837547,1729903839327,-237.22251,0.00043274,14]
[340837548,1729903839338,-5592.84401769,0.00043288,9]
[340837549,1729903839349,-11207.70823556,0.00043298,18]
[340837550,1729903839361,-155.69940062,0.00043299,2]
[340837551,1729903839371,-200.000001,0.000433,2]
[340837552,1729903839381,-500.0,0.000433,2]
[340837553,1729903839390,-2107.71,0.000434,30]
[340837554,1729903839400,-787.33,0.00043473,2]
[340837555,1729903839409,-173.83,0.00043699,91]
[340837556,1729903839419,-234.96,0.00043745,2]
[340837557,1729903839433,-177.31,0.00043768,2]
[340837558,1729903839446,-151.0,0.00044782,14]
[340837559,1729903839456,-151.0,0.00044782,14]
[340837560,1729903839466,-237.22251,0.00044782,14]
[340837561,1729903839475,-5592.84401769,0.00044782,9]
[340837562,1729903839484,-646.219306,0.00044792,14]
[340837563,1729903839493,-646.219306,0.00044792,14]
[340837564,1729903839502,-151.0,0.00044792,14]
[340837565,1729903839512,-151.0,0.00044792,14]
[340837566,1729903839521,-151.0,0.00044792,14]
[340837567,1729903839530,-207.62340022,0.00044792,2]
[340837568,1729903839540,-452.07,0.00045,30]
[340837569,1729903839549,-1000.0,0.00045,2]
[340837570,1729903839558,-151.0,0.00045014,120]
[340837571,1729903839567,-263.27,0.00045041,2]
[340837572,1729903839577,-3413.12804557,0.00045067,15]
[340837573,1729903839586,-150.86,0.00045205,2]
[340837574,1729903839595,-787.33,0.00045737,2]
[340837575,1729903839604,-155.75,0.00045753,2]
[340837576,1729903839613,-323.33651326,0.00045921,2]
[340837577,1729903839623,-781.9,0.00046018,2]
[340837578,1729903839632,-1000.0,0.00046039,2]
[340837579,1729903839641,-1000.0,0.00046079,2]
[340837580,1729903839651,-5592.84401769,0.00046258,9]
[340837581,1729903839660,-11185.6880354,0.00046411,9]
[340837582,1729903839669,-5592.84401769,0.00046421,9]
[340837583,1729903839679,-151.0,0.00046431,14]
[340837584,1729903839688,-151.0,0.00046431,14]
[340837585,1729903839697,-151.0,0.00046431,14]
[340837586,1729903839706,-151.0,0.00046431,14]
[340837587,1729903839715,-628.427735,0.00046431,14]
[340837588,1729903839725,-628.427735,0.00046431,14]
[340837589,1729903839734,-151.0,0.00046431,14]
[340837590,1729903839743,-151.0,0.00046431,14]
[340837591,1729903839752,-162.90652343,0.00046431,14]
[340837592,1729903839762,-151.0,0.00046431,14]
[340837593,1729903839771,-151.0,0.00046431,14]
[340837594,1729903839781,-151.0,0.00046431,14]
[340837595,1729903839790,-151.0,0.00046431,14]
[340837596,1729903839800,-151.0,0.00046431,14]
[340837597,1729903839809,-151.0,0.00046431,14]
[340837598,1729903839819,-180.40167,0.00046431,14]
[340837599,1729903839831,-151.0,0.00046431,14]
[340837600,1729903839841,-154.834734,0.00046431,14]
[340837601,1729903839850,-152.393785,0.00046431,14]
[340837602,1729903839859,-151.0,0.00046431,7]
[340837603,1729903839869,-151.0,0.00046431,14]
[340837604,1729903839878,-151.0,0.00046431,14]
[340837605,1729903839887,-151.0,0.00046431,14]
[340837606,1729903839896,-158.856795,0.0004704,2]
[340837607,1729903839906,-263.27,0.00047088,2]
[340837608,1729903839915,-166.68,0.0004723,2]
[340837609,1729903839924,-150.86,0.0004726,2]
[340837610,1729903839933,-5172.89821107,0.000476,2]
[340837611,1729903839943,-155.760364,0.000476,14]
[340837612,1729903839955,-151.0,0.000476,14]
[340837613,1729903839964,-221.204056,0.000476,14]
[340837614,1729903839973,-207.120679,0.000476,14]
[340837615,1729903839982,-151.0,0.000476,14]
[340837616,1729903839991,-207.120679,0.000476,14]
[340837617,1729903840000,-151.262348,0.000476,14]
[340837618,1729903840009,-151.262348,0.000476,14]
[340837619,1729903840018,-151.0,0.000476,14]
[340837620,1729903840027,-5592.84401769,0.00047723,10]
[340837621,1729903840036,-3413.12804557,0.00047733,15]
[340837622,1729903840045,-1000.0,0.00048,120]
[340837623,1729903840055,-787.33,0.00048001,2]
[340837624,1729903840064,-5592.84401769,0.00048769,10]
[340837625,1729903840073,-151.0,0.00048776,14]
[340837626,1729903840082,-151.0,0.00048776,14]
[340837627,1729903840091,-1625.0,0.00048779,2]
[340837628,1729903840201,-167.8,0.00048796,120]
[340837629,1729903840213,-451.228957,0.0004899,14]
[340837630,1729903840222,-151.0,0.0004899,14]
[340837631,1729903840231,-5592.84401769,0.0004899,10]
[340837632,1729903840241,-4778.05781165,0.00049,2]
[340837633,1729903840251,-2107.71,0.00049,30]
[340837634,1729903840260,-1000.0,0.00049,120]
[340837635,1729903840269,-263.27,0.00049136,2]
[340837636,1729903840278,-150.86,0.00049315,2]
[340837637,1729903840287,-500.0,0.0005,30]
[340837638,1729903840297,-500.0,0.0005,30]
[340837639,1729903840306,-500.0,0.0005,30]
[340837640,1729903840315,-500.0,0.0005,30]
[340837641,1729903840324,-1000.0,0.0005,120]
[340837642,1729903840334,-200.0,0.0005,7]
[340837643,1729903840343,-153.72,0.0005,120]
[340837644,1729903840352,-153.72,0.0005,120]
[340837645,1729903840361,-153.72,0.0005,120]
[340837646,1729903840371,-153.72,0.0005,120]
[340837647,1729903840380,-787.33,0.00050264,2]
[340837648,1729903840389,-5592.84401769,0.0005039,11]
[340837649,1729903840398,-3413.12804557,0.000504,15]
[340837650,1729903840407,-192.726,0.0005075,120]
[340837651,1729903840416,-192.725,0.0005075,120]
[340837652,1729903840426,-192.726,0.0005075,120]
[340837653,1729903840435,-192.726,0.0005075,120]
[340837654,1729903840444,-192.726,0.0005075,120]
[340837655,1729903840455,-428.58745624,0.00050758,60]
[340837656,1729903840464,-177.31,0.00050992,2]
[340837657,1729903840475,-1000.0,0.00051,120]
[340837658,1729903840484,-1000.0,0.00051198,120]
[340837659,1729903840495,-150.86,0.0005137,2]
[340837660,1729903840505,-1599.99999901,0.00051666,60]
[340837661,1729903840514,-5592.84401769,0.0005199,11]
[340837662,1729903840523,-1000.0,0.00052,120]
[340837663,1729903840532,-163.08,0.00052085,2]
[340837664,1729903840541,-3000.0,0.000521,2]
[340837665,1729903840550,-646.219306,0.000521,120]
[340837666,1729903840559,-646.219306,0.000521,120]
[340837667,1729903840568,-151.0,0.000521,120]
[340837668,1729903840577,-151.0,0.000521,120]
[340837669,1729903840586,-151.0,0.000521,120]
[340837670,1729903840595,-151.0,0.000521,14]
[340837671,1729903840605,-237.22251,0.000521,120]
[340837672,1729903840614,-5592.84401769,0.00052518,11]
[340837673,1729903840623,-787.33,0.00052528,2]
[340837674,1729903840634,-1500.0,0.000529,19]
[340837675,1729903840643,-571.1133374,0.00053,2]
[340837676,1729903840653,-1000.0,0.00053,120]
[340837677,1729903840662,-3413.12804557,0.00053067,15]
[340837678,1729903840672,-5592.84401769,0.00053163,11]
[340837679,1729903840681,-2900.52,0.00053183,2]
[340837680,1729903840690,-790.48187208,0.00053191,2]
[340837681,1729903840700,-9568.33899439,0.00053191,2]
[340837682,1729903840709,-179.54590109,0.00053191,2]
[340837684,1729903840718,-483.14250717,0.00053191,2]
[340837685,1729903840727,-5592.84401769,0.00053201,12]
[340837686,1729903840736,-340.12037404,0.00053201,30]
[340837687,1729903840746,-814.81481482,0.00053201,2]
[340837688,1729903840756,-151.0,0.0005329,120]
[340837689,1729903840766,-5592.84401769,0.0005329,12]
[340837690,1729903840776,-78299.8162477,0.00053291,12]
[340837691,1729903840785,-49269.482463,0.00053291,11]
[340837692,1729903840794,-151.0,0.00053291,120]
[340837693,1729903840803,-151.0,0.00053291,120]
[340837694,1729903840812,-151.0,0.00053291,14]
[340837695,1729903840821,-237.22251,0.00053291,120]
[340837696,1729903840831,-8211.5804105,0.00053291,11]
[340837697,1729903840840,-16778.5320531,0.00053301,12]
[340837698,1729903840849,-114962.125747,0.00053301,11]
[340837699,1729903840859,-289.5056353,0.00053301,2]
[340837700,1729903840868,-153.72,0.00053301,120]
[340837701,1729903840877,-151.0,0.00053301,120]
[340837702,1729903840887,-151.0,0.00053301,120]
[340837703,1729903840896,-628.427735,0.00053301,120]
[340837704,1729903840905,-628.427735,0.00053301,120]
[340837705,1729903840915,-151.0,0.00053301,110]
[340837706,1729903840924,-151.0,0.00053301,120]
[340837707,1729903840934,-151.0,0.00053301,120]
[340837708,1729903840944,-151.0,0.00053301,120]
[340837709,1729903840954,-151.0,0.00053301,120]
[340837710,1729903840964,-646.219306,0.00053301,120]
[340837711,1729903840973,-646.219306,0.00053301,120]
[340837712,1729903840982,-154.68413,0.00053301,120]
[340837713,1729903840990,-244.10026,0.00053301,120]
[340837714,1729903840999,-151.0,0.00053301,120]
[340837715,1729903841008,-207.642098,0.00053301,120]
[340837716,1729903841017,-151.0,0.00053301,120]
[340837717,1729903841027,-151.0,0.00053301,120]
[340837718,1729903841035,-207.120679,0.00053301,120]
[340837719,1729903841045,-207.120679,0.00053301,120]
[340837720,1729903841054,-151.262348,0.00053301,120]
[340837721,1729903841062,-151.262348,0.00053301,120]
[340837722,1729903841072,-293.449514,0.00053301,120]
[340837723,1729903841081,-451.228957,0.00053301,120]
[340837724,1729903841090,-186.435872,0.00053301,120]
[340837725,1729903841100,-151.0,0.00053301,7]
[340837726,1729903841109,-151.0,0.00053301,120]
[340837727,1729903841118,-186.254273,0.00053301,120]
[340837728,1729903841127,-151.0,0.00053301,14]
[340837729,1729903841136,-237.22251,0.00053301,120]
[340837730,1729903841145,-442.6996362,0.0005331,2]
[340837731,1729903841154,-227744.0201191,0.00053311,5]
[340837732,1729903841164,-151.0,0.00053311,120]
[340837733,1729903841173,-267.750922,0.00053311,120]
[340837734,1729903841183,-628.427735,0.00053311,120]
[340837735,1729903841192,-628.427735,0.00053311,120]
[340837736,1729903841203,-151.0,0.00053311,110]
[340837737,1729903841212,-151.0,0.00053311,120]
[340837738,1729903841221,-151.0,0.00053311,120]
[340837739,1729903841231,-151.0,0.00053311,120]
[340837740,1729903841243,-646.219306,0.00053311,120]
[340837741,1729903841252,-646.219306,0.00053311,120]
[340837742,1729903841262,-151.0,0.00053311,120]
[340837743,1729903841271,-151.0,0.00053311,120]
[340837744,1729903841280,-207.120679,0.00053311,120]
[340837745,1729903841289,-207.120679,0.00053311,120]
[340837746,1729903841299,-151.262348,0.00053311,120]
[340837747,1729903841308,-151.262348,0.00053311,120]
[340837748,1729903841317,-451.228957,0.00053311,120]
[340837749,1729903841326,-234.287018,0.00053311,7]
[340837750,1729903841336,-151.0,0.00053311,120]
[340837751,1729903841345,-151.0,0.00053311,14]
[340837752,1729903841354,-237.22251,0.00053311,120]
[340837753,1729903841363,-1280.3,0.000534,60]
[340837754,1729903841372,-150.86,0.00053425,2]
[340837755,1729903841381,-207.62340022,0.00053464,2]
[340837756,1729903841390,-8211.5804105,0.00053718,11]
[340837757,1729903841399,-16423.160821,0.00053728,11]
[340837758,1729903841408,-450.0,0.00053738,120]
[340837759,1729903841417,-1247.0,0.00053738,120]
[340837760,1729903841426,-813.0,0.00053738,120]
[340837761,1729903841435,-561.0,0.00053738,120]
[340837762,1729903841445,-556.0,0.00053738,120]
[340837763,1729903841454,-1980.0,0.00053738,120]
[340837764,1729903841463,-875.088,0.00053738,120]
[340837765,1729903841473,-812.757,0.00053738,120]
[340837766,1729903841482,-1264.0,0.00053738,120]
[340837767,1729903841491,-810.0,0.00053738,2]
[340837768,1729903841500,-13300.111,0.00053738,120]
[340837769,1729903841509,-150.204,0.00053738,120]
[340837770,1729903841518,-1085.0,0.00053738,120]
[340837771,1729903841528,-298.37,0.00053738,120]
[340837772,1729903841537,-1000.0,0.00054,120]
[340837773,1729903841547,-2107.71,0.000547,30]
[340837774,1729903841557,-8211.5804105,0.0005478,11]
[340837775,1729903841567,-787.33,0.00054792,2]
[340837776,1729903841575,-1817.0,0.00054794,120]